[Event "*** Qualifier 1: Titled Tuesday 3|2 Blitz"]
[Site "Chess.com"]
[Date "2017.04.04"]
[Round "8"]
[White "Sanan_Sjugirov"]
[Black "kleinebeer98"]
[Result "1-0"]
[WhiteElo "2701"]
[BlackElo "2498"]
[TimeControl "180+2"]
[EndTime "14:53:39 PDT"]
[Termination "Sanan_Sjugirov won by resignation"]

1. e4 {[%clk 0:03:02]} 1... e5 {[%clk 0:03:00.6]} 2. Nf3 {[%clk 0:03:03.2]} 2...
Nc6 {[%clk 0:03:01.9]} 3. Bb5 {[%clk 0:03:04]} 3... f5 {[%clk 0:03:03.3]} 4. d3
{[%clk 0:03:03.2]} 4... fxe4 {[%clk 0:03:04.5]} 5. dxe4 {[%clk 0:03:04.4]} 5...
Nf6 {[%clk 0:03:05.4]} 6. O-O {[%clk 0:03:04.9]} 6... d6 {[%clk 0:03:06]} 7. Qd3
{[%clk 0:03:02.4]} 7... Be7 {[%clk 0:03:05.2]} 8. Qc4 {[%clk 0:02:51.3]} 8... a6
{[%clk 0:01:42.9]} 9. Bxc6+ {[%clk 0:02:50]} 9... bxc6 {[%clk 0:01:44.8]} 10.
Nc3 {[%clk 0:02:25.8]} 10... d5 {[%clk 0:01:40.5]} 11. Qd3 {[%clk 0:02:09.5]}
11... d4 {[%clk 0:01:23.6]} 12. Nb1 {[%clk 0:02:04.3]} 12... Bd6 {[%clk
0:01:19.2]} 13. Nbd2 {[%clk 0:02:01.2]} 13... O-O {[%clk 0:01:15.5]} 14. Nc4
{[%clk 0:02:02.2]} 14... Qe7 {[%clk 0:01:13.8]} 15. Bg5 {[%clk 0:02:00.8]} 15...
Bg4 {[%clk 0:01:04.9]} 16. Nfd2 {[%clk 0:01:57]} 16... Kh8 {[%clk 0:01:01.1]}
17. a3 {[%clk 0:01:52.7]} 17... Qe6 {[%clk 0:00:56]} 18. f3 {[%clk 0:01:42.1]}
18... Bh5 {[%clk 0:00:54.3]} 19. b4 {[%clk 0:01:38.7]} 19... Bg6 {[%clk
0:00:51]} 20. Bxf6 {[%clk 0:01:31.7]} 20... gxf6 {[%clk 0:00:48.7]} 21. f4
{[%clk 0:01:22.6]} 21... exf4 {[%clk 0:00:46.7]} 22. Nxd6 {[%clk 0:01:21.9]}
22... cxd6 {[%clk 0:00:46.8]} 23. Qxd4 {[%clk 0:01:09.9]} 23... Qe5 {[%clk
0:00:39.9]} 24. Qf2 {[%clk 0:00:54.2]} 24... Bxe4 {[%clk 0:00:22.6]} 25. Rae1
{[%clk 0:00:54.2]} 25... f5 {[%clk 0:00:21.3]} 26. c4 {[%clk 0:00:41.4]} 26...
Qe6 {[%clk 0:00:16]} 27. Qxf4 {[%clk 0:00:39.4]} 27... Rae8 {[%clk 0:00:13.6]}
28. Re3 {[%clk 0:00:23.1]} 28... Rg8 {[%clk 0:00:10.4]} 29. g3 {[%clk
0:00:15.2]} 29... d5 {[%clk 0:00:09.7]} 30. Re2 {[%clk 0:00:09.3]} 30... Rg4
{[%clk 0:00:08.3]} 31. Qf2 {[%clk 0:00:10.3]} 31... f4 {[%clk 0:00:07.7]} 32.
Qd4+ {[%clk 0:00:08.5]} 32... Kg8 {[%clk 0:00:09]} 33. Nxe4 {[%clk 0:00:08.3]}
33... dxe4 {[%clk 0:00:09.9]} 34. Rxf4 {[%clk 0:00:09.2]} 34... Rxf4 {[%clk
0:00:08]} 35. gxf4 {[%clk 0:00:11.1]} 35... Kf7 {[%clk 0:00:09.8]} 36. Rg2
{[%clk 0:00:10.9]} 36... Qf6 {[%clk 0:00:07.5]} 37. Qd7+ {[%clk 0:00:06.1]}
37... Re7 {[%clk 0:00:08.2]} 38. Qd1 {[%clk 0:00:07.5]} 38... e3 {[%clk
0:00:04.2]} 39. h3 {[%clk 0:00:08.8]} 39... Qxf4 {[%clk 0:00:04.1]} 40. Qh5+
{[%clk 0:00:09.1]} 40... Ke6 {[%clk 0:00:05.6]} 41. Qd1 {[%clk 0:00:06.6]} 41...
Rf7 {[%clk 0:00:03.6]} 42. Qe1 {[%clk 0:00:06.7]} 42... Qf3 {[%clk 0:00:03.9]}
43. Rg3 {[%clk 0:00:07]} 43... Qf2+ {[%clk 0:00:04.6]} 44. Qxf2 {[%clk
0:00:08.5]} 44... exf2+ {[%clk 0:00:06.5]} 45. Kf1 {[%clk 0:00:10.1]} 45... Rf4
{[%clk 0:00:07.8]} 46. c5 {[%clk 0:00:10.5]} 46... Kd5 {[%clk 0:00:08.8]} 47.
Rg7 {[%clk 0:00:10.7]} 47... Kc4 {[%clk 0:00:08.2]} 48. Rxh7 {[%clk 0:00:10.5]}
48... Kb3 {[%clk 0:00:09.2]} 49. Ra7 {[%clk 0:00:10.9]} 49... Kxa3 {[%clk
0:00:08.8]} 50. Rxa6+ {[%clk 0:00:12.3]} 50... Kxb4 {[%clk 0:00:09.6]} 51. Rxc6
{[%clk 0:00:13.9]} 51... Kc3 {[%clk 0:00:10.3]} 52. Rd6 {[%clk 0:00:13.5]} 52...
Kc4 {[%clk 0:00:03.6]} 53. c6 {[%clk 0:00:14.7]} 53... Kc5 {[%clk 0:00:04.7]}
54. c7 {[%clk 0:00:15]} 54... Kxd6 {[%clk 0:00:06.2]} 55. c8=Q {[%clk
0:00:15.9]} 55... Kd5 {[%clk 0:00:08.1]} 56. Qe8 {[%clk 0:00:15]} 56... Rf5
{[%clk 0:00:07.9]} 57. h4 {[%clk 0:00:15.3]} 57... Re5 {[%clk 0:00:08.7]} 58.
Qf7+ {[%clk 0:00:16.1]} 1-0

[Event "*** Qualifier 1: Titled Tuesday 3|2 Blitz"]
[Site "Chess.com"]
[Date "2017.04.04"]
[Round "8"]
[White "MITerryble"]
[Black "platy3"]
[Result "1/2-1/2"]
[WhiteElo "2743"]
[BlackElo "2645"]
[TimeControl "180+2"]
[EndTime "14:53:46 PDT"]
[Termination "Game drawn by repetition"]

1. d4 {[%clk 0:03:02]} 1... Nf6 {[%clk 0:03:00.2]} 2. Nf3 {[%clk 0:03:03.4]}
2... e6 {[%clk 0:03:00.6]} 3. c4 {[%clk 0:03:03.9]} 3... d5 {[%clk 0:03:00.7]}
4. e3 {[%clk 0:03:04.4]} 4... b6 {[%clk 0:02:59.3]} 5. Qa4+ {[%clk 0:02:57.4]}
5... Nbd7 {[%clk 0:02:58.3]} 6. Ne5 {[%clk 0:02:56.6]} 6... Bb7 {[%clk
0:02:57.4]} 7. cxd5 {[%clk 0:02:56.2]} 7... exd5 {[%clk 0:02:53.3]} 8. Bb5
{[%clk 0:02:52.6]} 8... a6 {[%clk 0:02:52.2]} 9. Bc6 {[%clk 0:02:53]} 9... Bxc6
{[%clk 0:02:47]} 10. Qxc6 {[%clk 0:02:51.1]} 10... Bb4+ {[%clk 0:02:35.5]} 11.
Bd2 {[%clk 0:02:47.7]} 11... Bxd2+ {[%clk 0:02:30.7]} 12. Nxd2 {[%clk
0:02:49.6]} 12... O-O {[%clk 0:02:31.8]} 13. Nxd7 {[%clk 0:02:47.6]} 13... Qxd7
{[%clk 0:02:32.7]} 14. Rc1 {[%clk 0:02:48]} 14... Rac8 {[%clk 0:02:30.3]} 15.
O-O {[%clk 0:02:43.8]} 15... Rfe8 {[%clk 0:02:28.8]} 16. Nf3 {[%clk 0:02:22.7]}
16... Qxc6 {[%clk 0:01:46]} 17. Rxc6 {[%clk 0:02:20.9]} 17... Re6 {[%clk
0:01:47.9]} 18. Rfc1 {[%clk 0:02:17.2]} 18... Rxc6 {[%clk 0:01:48.4]} 19. Rxc6
{[%clk 0:02:19.1]} 19... Kf8 {[%clk 0:01:50]} 20. Ne5 {[%clk 0:02:01.3]} 20...
Ke7 {[%clk 0:01:50.6]} 21. Kf1 {[%clk 0:01:42.7]} 21... Ne4 {[%clk 0:01:47.8]}
22. Ke2 {[%clk 0:01:27.7]} 22... f6 {[%clk 0:01:47.7]} 23. Nd3 {[%clk
0:01:25.5]} 23... Kd7 {[%clk 0:01:47.8]} 24. Rc1 {[%clk 0:01:24.8]} 24... a5
{[%clk 0:01:44.9]} 25. b3 {[%clk 0:01:14.7]} 25... c6 {[%clk 0:01:45.2]} 26. f3
{[%clk 0:01:10.7]} 26... Nd6 {[%clk 0:01:46.2]} 27. a4 {[%clk 0:01:10.5]} 27...
Re8 {[%clk 0:01:23.7]} 28. Kf2 {[%clk 0:01:08.4]} 28... Nf5 {[%clk 0:01:18.7]}
29. Re1 {[%clk 0:01:08.7]} 29... Kd6 {[%clk 0:01:19.6]} 30. g4 {[%clk
0:01:09.2]} 30... Nh6 {[%clk 0:01:11.9]} 31. Rd1 {[%clk 0:01:08.1]} 31... Nf7
{[%clk 0:01:12.2]} 32. Nf4 {[%clk 0:01:04.2]} 32... Ng5 {[%clk 0:01:11.8]} 33.
h4 {[%clk 0:01:00.3]} 33... Ne6 {[%clk 0:01:12.8]} 34. Nh5 {[%clk 0:00:54.5]}
34... Rb8 {[%clk 0:01:02.6]} 35. f4 {[%clk 0:00:52.4]} 35... Rb7 {[%clk
0:01:01.5]} 36. f5 {[%clk 0:00:53.4]} 36... Nf8 {[%clk 0:00:54.4]} 37. Kf3
{[%clk 0:00:39.3]} 37... Rf7 {[%clk 0:00:43.8]} 38. Ng3 {[%clk 0:00:29.8]} 38...
Nd7 {[%clk 0:00:33.4]} 39. Kf4 {[%clk 0:00:27.2]} 39... Re7 {[%clk 0:00:30.7]}
40. e4 {[%clk 0:00:27.1]} 40... dxe4 {[%clk 0:00:31.3]} 41. Nxe4+ {[%clk
0:00:29]} 41... Kd5 {[%clk 0:00:32]} 42. Nc3+ {[%clk 0:00:30.1]} 42... Kd6
{[%clk 0:00:33.2]} 43. Ne4+ {[%clk 0:00:31.5]} 43... Kc7 {[%clk 0:00:20.7]} 44.
g5 {[%clk 0:00:28.6]} 44... b5 {[%clk 0:00:09.6]} 45. axb5 {[%clk 0:00:13]}
45... cxb5 {[%clk 0:00:10.8]} 46. Rc1+ {[%clk 0:00:08.6]} 46... Kb6 {[%clk
0:00:10.1]} 47. Nd6 {[%clk 0:00:07.4]} 47... Re2 {[%clk 0:00:07.6]} 48. Nc8+
{[%clk 0:00:08.5]} 48... Kb7 {[%clk 0:00:08.5]} 49. Nd6+ {[%clk 0:00:09.6]}
49... Kb6 {[%clk 0:00:09.9]} 50. Nc8+ {[%clk 0:00:10.6]} 50... Kb7 {[%clk
0:00:10.8]} 51. Nd6+ {[%clk 0:00:11.7]} 51... Kb6 {[%clk 0:00:12.2]} 52. Nc8+
{[%clk 0:00:10.3]} 52... Kb7 {[%clk 0:00:07.2]} 53. Nd6+ {[%clk 0:00:10.2]}
53... Kb6 {[%clk 0:00:08.8]} 54. Nc8+ {[%clk 0:00:09]} 54... Kb7 {[%clk
0:00:10.2]} 55. Nd6+ {[%clk 0:00:10.1]} 55... Kb6 {[%clk 0:00:11.7]} 1/2-1/2

[Event "*** Qualifier 1: Titled Tuesday 3|2 Blitz"]
[Site "Chess.com"]
[Date "2017.04.04"]
[Round "8"]
[White "Feegus"]
[Black "Marcus_Harvey"]
[Result "1-0"]
[WhiteElo "2375"]
[BlackElo "2461"]
[TimeControl "180+2"]
[EndTime "14:53:46 PDT"]
[Termination "Feegus won by resignation"]

1. d4 {[%clk 0:03:00.2]} 1... e6 {[%clk 0:02:57.6]} 2. Bf4 {[%clk 0:03:01.6]}
2... c5 {[%clk 0:02:56.7]} 3. c3 {[%clk 0:03:00.6]} 3... Qb6 {[%clk 0:02:55.2]}
4. Qb3 {[%clk 0:03:00]} 4... cxd4 {[%clk 0:02:54.7]} 5. Qxb6 {[%clk 0:02:59.5]}
5... axb6 {[%clk 0:02:55]} 6. cxd4 {[%clk 0:03:01.4]} 6... Nc6 {[%clk
0:02:56.1]} 7. Nf3 {[%clk 0:02:45.1]} 7... Nb4 {[%clk 0:02:47.2]} 8. Kd2 {[%clk
0:02:43]} 8... Rxa2 {[%clk 0:02:35.9]} 9. Rxa2 {[%clk 0:02:42.7]} 9... Nxa2
{[%clk 0:02:37.8]} 10. e3 {[%clk 0:02:42.9]} 10... Nf6 {[%clk 0:02:22.5]} 11.
Bb5 {[%clk 0:02:43.3]} 11... Nd5 {[%clk 0:02:14]} 12. Bg3 {[%clk 0:02:40.5]}
12... f6 {[%clk 0:01:47.9]} 13. e4 {[%clk 0:02:33.3]} 13... Ndb4 {[%clk
0:01:30.3]} 14. Nc3 {[%clk 0:02:33.1]} 14... Nxc3 {[%clk 0:01:25.1]} 15. bxc3
{[%clk 0:02:33.3]} 15... Na6 {[%clk 0:01:25.2]} 16. Re1 {[%clk 0:02:02.7]} 16...
Kf7 {[%clk 0:01:23.6]} 17. Rb1 {[%clk 0:01:57.3]} 17... d5 {[%clk 0:01:00.1]}
18. Bd3 {[%clk 0:01:54.9]} 18... Be7 {[%clk 0:00:49]} 19. Rxb6 {[%clk
0:01:54.7]} 19... Bd8 {[%clk 0:00:49.2]} 20. Rb2 {[%clk 0:01:49.4]} 20... Nc7
{[%clk 0:00:43.4]} 21. e5 {[%clk 0:01:46.5]} 21... f5 {[%clk 0:00:29.2]} 22. Bh4
{[%clk 0:01:44.8]} 22... Bxh4 {[%clk 0:00:27]} 23. Nxh4 {[%clk 0:01:46.7]} 23...
g5 {[%clk 0:00:25.8]} 24. Nf3 {[%clk 0:01:47.5]} 24... h6 {[%clk 0:00:27.3]} 25.
Ne1 {[%clk 0:01:45]} 25... Ke7 {[%clk 0:00:28.4]} 26. Nc2 {[%clk 0:01:43.5]}
26... Kd7 {[%clk 0:00:26.5]} 27. Na3 {[%clk 0:01:41.7]} 27... Kc6 {[%clk
0:00:24.2]} 28. c4 {[%clk 0:01:42.8]} 28... b6 {[%clk 0:00:22.4]} 29. Bc2 {[%clk
0:01:41.3]} 29... dxc4 {[%clk 0:00:20.3]} 30. Ba4+ {[%clk 0:01:42.4]} 30... Kd5
{[%clk 0:00:11.6]} 31. Kc3 {[%clk 0:01:41.2]} 31... Ke4 {[%clk 0:00:10.1]} 32.
Bc6+ {[%clk 0:01:41.6]} 32... Nd5+ {[%clk 0:00:10.9]} 33. Kxc4 {[%clk 0:01:41]}
33... Ba6+ {[%clk 0:00:11.3]} 34. Bb5 {[%clk 0:01:30.3]} 34... Rc8+ {[%clk
0:00:10.7]} 35. Kb3 {[%clk 0:01:26.8]} 35... Rc3+ {[%clk 0:00:11]} 36. Ka4
{[%clk 0:01:24.5]} 36... Bxb5+ {[%clk 0:00:09.1]} 37. Nxb5 {[%clk 0:01:24.4]}
37... Rc4+ {[%clk 0:00:10.5]} 38. Ka3 {[%clk 0:01:22.7]} 38... Kd3 {[%clk
0:00:11.8]} 39. Rb3+ {[%clk 0:01:21.3]} 39... Kc2 {[%clk 0:00:10.4]} 40. Rb2+
{[%clk 0:01:20.1]} 40... Kd3 {[%clk 0:00:11]} 41. Rb3+ {[%clk 0:01:20.2]} 41...
Ke2 {[%clk 0:00:12.2]} 42. Rb2+ {[%clk 0:01:19.2]} 42... Kf1 {[%clk 0:00:13.4]}
43. f3 {[%clk 0:01:15.8]} 43... f4 {[%clk 0:00:14.2]} 44. Rd2 {[%clk 0:01:14.2]}
44... Ne3 {[%clk 0:00:15]} 45. Kb3 {[%clk 0:01:12.5]} 45... Rc1 {[%clk 0:00:14]}
46. Nc3 {[%clk 0:01:10.6]} 46... Nxg2 {[%clk 0:00:13.7]} 47. d5 {[%clk
0:01:09.5]} 47... exd5 {[%clk 0:00:14.9]} 48. e6 {[%clk 0:01:08.3]} 48... Re1
{[%clk 0:00:15.4]} 49. Rd1 {[%clk 0:01:06.4]} 49... Rxd1 {[%clk 0:00:03.6]} 50.
Nxd1 {[%clk 0:01:07]} 50... g4 {[%clk 0:00:03.2]} 51. e7 {[%clk 0:01:06.2]}
51... gxf3 {[%clk 0:00:04.3]} 52. e8=Q {[%clk 0:01:06.5]} 52... f2 {[%clk
0:00:05.3]} 53. Qc6 {[%clk 0:00:46.7]} 53... Kg1 {[%clk 0:00:06.4]} 54. Qxb6
{[%clk 0:00:43.8]} 54... Ne3 {[%clk 0:00:07.6]} 55. Nxe3 {[%clk 0:00:42.5]}
55... fxe3 {[%clk 0:00:08.8]} 56. Qxe3 {[%clk 0:00:43.3]} 56... h5 {[%clk
0:00:07.6]} 57. Qg3+ {[%clk 0:00:41.5]} 57... Kf1 {[%clk 0:00:09]} 58. Kc3
{[%clk 0:00:42.3]} 58... Ke2 {[%clk 0:00:10]} 59. Qd3+ {[%clk 0:00:27.4]} 59...
Ke1 {[%clk 0:00:10.7]} 60. Qd2+ {[%clk 0:00:27.8]} 60... Kf1 {[%clk 0:00:11.5]}
61. Kd3 {[%clk 0:00:28.9]} 61... Kg1 {[%clk 0:00:07]} 62. Qg5+ {[%clk
0:00:28.1]} 62... Kh1 {[%clk 0:00:07.4]} 63. Ke2 {[%clk 0:00:26.6]} 1-0

[Event "*** Qualifier 1: Titled Tuesday 3|2 Blitz"]
[Site "Chess.com"]
[Date "2017.04.04"]
[Round "8"]
[White "PelinGorki"]
[Black "Bad4life"]
[Result "0-1"]
[WhiteElo "2398"]
[BlackElo "2295"]
[TimeControl "180+2"]
[EndTime "14:54:03 PDT"]
[Termination "Bad4life won by resignation"]

1. e4 {[%clk 0:02:59.6]} 1... c5 {[%clk 0:03:01.2]} 2. Nf3 {[%clk 0:03:00.3]}
2... d6 {[%clk 0:03:02.7]} 3. d4 {[%clk 0:03:01.7]} 3... cxd4 {[%clk 0:03:04.6]}
4. Nxd4 {[%clk 0:03:03.5]} 4... Nf6 {[%clk 0:03:06]} 5. Nc3 {[%clk 0:03:04.8]}
5... g6 {[%clk 0:03:07.6]} 6. Be3 {[%clk 0:03:05.7]} 6... Bg7 {[%clk 0:03:09.2]}
7. f3 {[%clk 0:03:07.2]} 7... Nc6 {[%clk 0:03:10.1]} 8. Qd2 {[%clk 0:03:08.3]}
8... O-O {[%clk 0:03:10.2]} 9. O-O-O {[%clk 0:03:09.7]} 9... Nxd4 {[%clk
0:03:11.8]} 10. Bxd4 {[%clk 0:03:10.6]} 10... Be6 {[%clk 0:03:13.5]} 11. Kb1
{[%clk 0:03:12.2]} 11... Qc7 {[%clk 0:03:15]} 12. g4 {[%clk 0:03:13.8]} 12...
Rfc8 {[%clk 0:03:15.8]} 13. h4 {[%clk 0:03:15]} 13... Qa5 {[%clk 0:03:12.5]} 14.
h5 {[%clk 0:03:14.4]} 14... g5 {[%clk 0:03:10]} 15. a3 {[%clk 0:03:01.9]} 15...
h6 {[%clk 0:03:00.2]} 16. Nd5 {[%clk 0:02:45.8]} 16... Qxd2 {[%clk 0:02:56.5]}
17. Nxf6+ {[%clk 0:02:46.3]} 17... Bxf6 {[%clk 0:02:56]} 18. Rxd2 {[%clk
0:02:47.5]} 18... Kg7 {[%clk 0:02:55.9]} 19. Be3 {[%clk 0:02:41.6]} 19... Be5
{[%clk 0:02:53.5]} 20. Be2 {[%clk 0:02:42.4]} 20... a6 {[%clk 0:02:42.2]} 21.
Rhd1 {[%clk 0:02:42]} 21... b5 {[%clk 0:02:42.6]} 22. Bd4 {[%clk 0:02:21.2]}
22... Kf6 {[%clk 0:02:41.1]} 23. Be3 {[%clk 0:02:08.6]} 23... Rc6 {[%clk
0:02:37.7]} 24. Rf1 {[%clk 0:02:07.9]} 24... Rg8 {[%clk 0:02:19.5]} 25. Bd3
{[%clk 0:02:02.3]} 25... Bc4 {[%clk 0:02:16.5]} 26. Bxc4 {[%clk 0:02:02.3]}
26... bxc4 {[%clk 0:02:14.1]} 27. Bd4 {[%clk 0:02:02.8]} 27... c3 {[%clk
0:02:07.1]} 28. Bxe5+ {[%clk 0:01:55]} 28... Kxe5 {[%clk 0:02:08.1]} 29. bxc3
{[%clk 0:01:56.9]} 29... Rxc3 {[%clk 0:02:03.1]} 30. Rd5+ {[%clk 0:01:54.4]}
30... Ke6 {[%clk 0:02:01.9]} 31. Rd3 {[%clk 0:01:51]} 31... Rb8+ {[%clk
0:02:01.5]} 32. Kc1 {[%clk 0:01:51.9]} 32... Rxd3 {[%clk 0:01:57.7]} 33. cxd3
{[%clk 0:01:53.8]} 33... Rb3 {[%clk 0:01:58.9]} 34. Kd2 {[%clk 0:01:54.5]} 34...
Rxa3 {[%clk 0:01:58.9]} 35. Rb1 {[%clk 0:01:55.5]} 35... a5 {[%clk 0:01:49.6]}
36. Rb8 {[%clk 0:01:54.7]} 36... Ke5 {[%clk 0:01:41.9]} 37. Ke3 {[%clk
0:01:51.6]} 37... e6 {[%clk 0:01:26.1]} 38. Rh8 {[%clk 0:01:46.1]} 38... d5
{[%clk 0:01:12.9]} 39. exd5 {[%clk 0:01:48]} 39... exd5 {[%clk 0:01:14.1]} 40.
Rxh6 {[%clk 0:01:43.1]} 40... d4+ {[%clk 0:01:13.7]} 41. Kd2 {[%clk 0:01:43.2]}
41... Ra2+ {[%clk 0:01:14.9]} 42. Ke1 {[%clk 0:01:40.5]} 42... Kf4 {[%clk
0:01:13]} 43. Rf6+ {[%clk 0:01:40.5]} 43... Ke3 {[%clk 0:01:14.1]} 44. Kf1
{[%clk 0:01:41.8]} 44... a4 {[%clk 0:01:01]} 45. Kg1 {[%clk 0:01:10.7]} 45... a3
{[%clk 0:00:47.2]} 46. Ra6 {[%clk 0:01:03.5]} 46... Kxf3 {[%clk 0:00:30.8]} 47.
h6 {[%clk 0:01:03.6]} 47... Kg3 {[%clk 0:00:32]} 48. Kf1 {[%clk 0:01:01.9]}
48... Rf2+ {[%clk 0:00:30]} 49. Ke1 {[%clk 0:01:02.2]} 49... a2 {[%clk
0:00:29.6]} 50. h7 {[%clk 0:01:01.6]} 50... Rh2 {[%clk 0:00:28]} 51. Rxa2 {[%clk
0:01:01.6]} 51... Rxh7 {[%clk 0:00:26.8]} 52. Ra4 {[%clk 0:01:01.1]} 52... Kxg4
{[%clk 0:00:24.1]} 53. Rxd4+ {[%clk 0:01:00.7]} 53... Kf3 {[%clk 0:00:25.6]} 54.
Rd5 {[%clk 0:00:57.3]} 54... g4 {[%clk 0:00:21.1]} 55. Kd2 {[%clk 0:00:53.9]}
55... Rh2+ {[%clk 0:00:20.4]} 56. Kc3 {[%clk 0:00:55.3]} 56... g3 {[%clk
0:00:21.9]} 57. Rf5+ {[%clk 0:00:54.1]} 57... Kg4 {[%clk 0:00:20.8]} 58. Rxf7
{[%clk 0:00:55.4]} 58... g2 {[%clk 0:00:22.3]} 59. Kc4 {[%clk 0:00:50.8]} 59...
Rh5 {[%clk 0:00:19.8]} 0-1

[Event "*** Qualifier 1: Titled Tuesday 3|2 Blitz"]
[Site "Chess.com"]
[Date "2017.04.04"]
[Round "8"]
[White "GeorgMeier"]
[Black "SantoBlue"]
[Result "1-0"]
[WhiteElo "2713"]
[BlackElo "2534"]
[TimeControl "180+2"]
[EndTime "14:54:38 PDT"]
[Termination "GeorgMeier won by resignation"]

1. Nf3 {[%clk 0:03:02]} 1... g6 {[%clk 0:03:00.7]} 2. g3 {[%clk 0:03:03.7]} 2...
Bg7 {[%clk 0:03:02.6]} 3. d4 {[%clk 0:03:05.6]} 3... Nf6 {[%clk 0:03:03.7]} 4.
Bg2 {[%clk 0:03:07.2]} 4... O-O {[%clk 0:03:05.6]} 5. O-O {[%clk 0:03:08.9]}
5... d6 {[%clk 0:03:06.9]} 6. b3 {[%clk 0:03:10.3]} 6... Nbd7 {[%clk 0:02:59.5]}
7. Bb2 {[%clk 0:03:11]} 7... c5 {[%clk 0:02:59.3]} 8. c4 {[%clk 0:03:11.7]} 8...
a6 {[%clk 0:02:57.9]} 9. Nc3 {[%clk 0:03:03.9]} 9... Rb8 {[%clk 0:02:53]} 10. a4
{[%clk 0:03:04.8]} 10... Re8 {[%clk 0:02:47.9]} 11. e3 {[%clk 0:02:28.3]} 11...
b6 {[%clk 0:02:47.2]} 12. Qc2 {[%clk 0:02:19.7]} 12... Bb7 {[%clk 0:02:43.7]}
13. d5 {[%clk 0:02:20.8]} 13... Bc8 {[%clk 0:02:41.1]} 14. h3 {[%clk 0:02:16.8]}
14... h6 {[%clk 0:02:29.4]} 15. Nd2 {[%clk 0:02:05.6]} 15... Nf8 {[%clk
0:02:29.2]} 16. f4 {[%clk 0:01:30.8]} 16... e6 {[%clk 0:02:10.4]} 17. dxe6
{[%clk 0:01:19.1]} 17... Bxe6 {[%clk 0:01:57.9]} 18. Rad1 {[%clk 0:01:18.2]}
18... Qc8 {[%clk 0:01:53.3]} 19. Kh2 {[%clk 0:01:18.4]} 19... h5 {[%clk
0:01:49.2]} 20. Nde4 {[%clk 0:01:05.1]} 20... Bf5 {[%clk 0:01:46.4]} 21. Nxf6+
{[%clk 0:01:03.6]} 21... Bxf6 {[%clk 0:01:48.3]} 22. Qd2 {[%clk 0:01:05]} 22...
Nh7 {[%clk 0:01:33.4]} 23. e4 {[%clk 0:00:58.6]} 23... Be6 {[%clk 0:01:33.2]}
24. e5 {[%clk 0:00:39.8]} 24... dxe5 {[%clk 0:01:33.2]} 25. Ne4 {[%clk
0:00:41.4]} 25... Bg7 {[%clk 0:01:32.8]} 26. Nd6 {[%clk 0:00:32.2]} 26... Qc7
{[%clk 0:01:34.1]} 27. Nxe8 {[%clk 0:00:32.4]} 27... Rxe8 {[%clk 0:01:34.8]} 28.
Bxe5 {[%clk 0:00:32.4]} 28... Bxe5 {[%clk 0:01:35.5]} 29. fxe5 {[%clk
0:00:34.3]} 29... Qxe5 {[%clk 0:01:35.9]} 30. Rfe1 {[%clk 0:00:27]} 30... Qf6
{[%clk 0:01:37.1]} 31. Qf4 {[%clk 0:00:27.9]} 31... Qb2 {[%clk 0:01:36.5]} 32.
Rd3 {[%clk 0:00:18.1]} 32... Nf6 {[%clk 0:01:24.1]} 33. Qd2 {[%clk 0:00:16]}
33... Qxd2 {[%clk 0:01:22.1]} 34. Rxd2 {[%clk 0:00:17.9]} 34... Rb8 {[%clk
0:01:22.6]} 35. Rd6 {[%clk 0:00:14.9]} 35... Kg7 {[%clk 0:01:17.4]} 36. Re3
{[%clk 0:00:15.4]} 36... Bf5 {[%clk 0:01:16.8]} 37. Bd5 {[%clk 0:00:13.2]} 37...
b5 {[%clk 0:01:08.3]} 38. cxb5 {[%clk 0:00:13.8]} 38... axb5 {[%clk 0:01:08.6]}
39. a5 {[%clk 0:00:15.4]} 39... Nxd5 {[%clk 0:01:01.6]} 40. Rxd5 {[%clk
0:00:17.3]} 40... Ra8 {[%clk 0:01:03.1]} 41. b4 {[%clk 0:00:14.9]} 41... cxb4
{[%clk 0:01:00.4]} 42. Rxb5 {[%clk 0:00:16]} 42... Be6 {[%clk 0:01:02]} 43. Kg2
{[%clk 0:00:12.7]} 43... b3 {[%clk 0:01:03.2]} 44. Kf2 {[%clk 0:00:14]} 44...
Rc8 {[%clk 0:01:04.4]} 45. Re2 {[%clk 0:00:13.9]} 45... Rc1 {[%clk 0:01:05.1]}
46. Rb2 {[%clk 0:00:13.8]} 46... Ra1 {[%clk 0:01:06.2]} 47. Ke3 {[%clk
0:00:11.2]} 47... Ra4 {[%clk 0:01:05.9]} 48. h4 {[%clk 0:00:11.2]} 48... Rg4
{[%clk 0:01:06.4]} 49. Kf2 {[%clk 0:00:11.6]} 49... Ra4 {[%clk 0:01:07.9]} 50.
Ke3 {[%clk 0:00:13]} 50... Rg4 {[%clk 0:01:08.7]} 51. Kf3 {[%clk 0:00:13.5]}
51... Ra4 {[%clk 0:01:09.2]} 52. Ke3 {[%clk 0:00:14.3]} 52... Bc4 {[%clk
0:01:08.7]} 53. Rc5 {[%clk 0:00:15.1]} 53... Be6 {[%clk 0:01:09.4]} 54. Kd3
{[%clk 0:00:15.8]} 54... Ra1 {[%clk 0:01:07.8]} 55. Kd4 {[%clk 0:00:13.6]} 55...
Kf6 {[%clk 0:01:08.9]} 56. Rb5 {[%clk 0:00:13.6]} 56... Ke7 {[%clk 0:01:07.5]}
57. Kc5 {[%clk 0:00:13]} 57... Ra2 {[%clk 0:01:04.4]} 58. Rb1 {[%clk 0:00:14.2]}
58... Kd8 {[%clk 0:01:04.1]} 59. Kb6 {[%clk 0:00:15.5]} 59... Rd2 {[%clk
0:00:57.2]} 60. a6 {[%clk 0:00:15.6]} 60... Rd6+ {[%clk 0:00:56.9]} 61. Ka5
{[%clk 0:00:16.8]} 61... Bc8 {[%clk 0:00:57]} 62. Rb6 {[%clk 0:00:16.9]} 62...
Rd2 {[%clk 0:00:56]} 63. R1xb3 {[%clk 0:00:16.6]} 63... Ra2+ {[%clk 0:00:57.3]}
64. Kb5 {[%clk 0:00:18.1]} 64... Bd7+ {[%clk 0:00:58.5]} 65. Kc5 {[%clk
0:00:19.6]} 65... Bc8 {[%clk 0:00:58.5]} 66. Rd3+ {[%clk 0:00:20.9]} 66... Ke7
{[%clk 0:00:57.6]} 67. Rb7+ {[%clk 0:00:22.3]} 67... Kf6 {[%clk 0:00:54.7]} 68.
Kb6 {[%clk 0:00:22.8]} 68... Rb2+ {[%clk 0:00:52.4]} 69. Kc7 {[%clk 0:00:23.9]}
69... Rc2+ {[%clk 0:00:53.7]} 70. Kd8 {[%clk 0:00:21.9]} 70... Rc6 {[%clk
0:00:51.8]} 71. Rc7 {[%clk 0:00:18.5]} 71... Rxc7 {[%clk 0:00:52.9]} 72. Kxc7
{[%clk 0:00:20]} 72... Bxa6 {[%clk 0:00:54.5]} 73. Rd6+ {[%clk 0:00:21.3]} 73...
Kf5 {[%clk 0:00:56.1]} 74. Rxa6 {[%clk 0:00:22.9]} 74... Kg4 {[%clk 0:00:57.7]}
75. Ra3 {[%clk 0:00:24]} 75... f6 {[%clk 0:00:57.2]} 76. Kd6 {[%clk 0:00:25.1]}
76... g5 {[%clk 0:00:58.7]} 77. Ke6 {[%clk 0:00:26.4]} 77... gxh4 {[%clk
0:01:00]} 78. gxh4 {[%clk 0:00:28.3]} 78... f5 {[%clk 0:01:01.6]} 79. Ke5 {[%clk
0:00:28.2]} 79... Kxh4 {[%clk 0:01:03.1]} 80. Rf3 {[%clk 0:00:26.3]} 80... Kg4
{[%clk 0:01:04.1]} 81. Rf4+ {[%clk 0:00:26.8]} 81... Kg3 {[%clk 0:01:05.7]} 82.
Kxf5 {[%clk 0:00:27.3]} 82... h4 {[%clk 0:01:07.3]} 83. Rg4+ {[%clk 0:00:28.6]}
83... Kh3 {[%clk 0:01:06.3]} 84. Ra4 {[%clk 0:00:29.5]} 84... Kg3 {[%clk
0:01:06.5]} 85. Ra3+ {[%clk 0:00:30.1]} 85... Kg2 {[%clk 0:01:07.3]} 86. Kg4
{[%clk 0:00:31.6]} 1-0